fUST/lending_fUST_20250816
["ID","MTS","AMOUNT","RATE_DAILY","PERIOD"]
[379453796,1755285046249,-160.38,0.0002494,7]
[379453797,1755285046259,-164.202,0.00024948,7]
[379453799,1755285046268,-300.67924464,0.00024999,2]
[379453800,1755285046278,-9213.30664912,0.00025,2]
[379453801,1755285046287,-1066.84979093,0.00025,2]
[379453802,1755285046297,-2627.15433876,0.00025,2]
[379453803,1755285046306,-208.30659336,0.00025,2]
[379453804,1755285046316,-359.60287581,0.00025,2]
[379453805,1755285046326,-553.26443397,0.00025,2]
[379453806,1755285046336,-150.0,0.00025,2]
[379453807,1755285046345,-500.0,0.00025,2]
[379453808,1755285046355,-600.0,0.00025,2]
[379453809,1755285046365,-232.08354597,0.00025,7]
[379453810,1755285046376,-417.15472785,0.00025,7]
[379453811,1755285046387,-160.38,0.0002504,7]
[379453812,1755285046397,-13376.31707866,0.00025061,2]
[379453813,1755285046410,-1038.54414982,0.00025125,2]
[379453814,1755285046420,-160.38,0.0002514,7]
[379453815,1755285046430,-151.0,0.00025174,6]
[379453816,1755285046441,-1260.0,0.00025177,2]
[379453817,1755285046454,-500.0,0.00025206,2]
[379453818,1755285046465,-160.38,0.0002524,7]
[379453819,1755285046475,-2000.0,0.0002526,2]
[379453820,1755285046488,-153.0,0.00025279,2]
[379453821,1755285046499,-153.0,0.00025279,2]
[379453822,1755285046510,-153.0,0.00025279,2]
[379453823,1755285046521,-153.0,0.00025279,2]
[379453824,1755285046532,-153.0,0.00025279,2]
[379453825,1755285046542,-153.0,0.00025279,2]
[379453826,1755285046552,-153.0,0.00025279,2]
[379453827,1755285046561,-153.0,0.00025279,2]
[379453828,1755285046570,-153.0,0.00025279,2]
[379453829,1755285046580,-153.0,0.00025279,2]
[379453830,1755285046590,-153.0,0.00025279,2]
[379453831,1755285046599,-153.0,0.00025279,2]
[379453832,1755285046609,-153.0,0.00025279,2]
[379453833,1755285046618,-153.0,0.00025279,2]
[379453834,1755285046628,-153.0,0.00025279,2]
[379453835,1755285046638,-153.0,0.00025279,2]
[379453836,1755285046647,-153.0,0.00025279,2]
[379453837,1755285046657,-153.0,0.00025279,2]
[379453838,1755285046666,-153.0,0.00025279,2]
[379453839,1755285046676,-153.0,0.00025279,2]
[379453840,1755285046687,-153.0,0.00025279,2]
[379453841,1755285046697,-153.0,0.00025279,2]
[379453842,1755285046708,-153.0,0.00025279,2]
[379453843,1755285046720,-153.0,0.00025279,2]
[379453844,1755285046731,-153.0,0.00025279,2]
[379453845,1755285046742,-153.0,0.00025279,2]
[379453846,1755285046757,-153.0,0.00025279,2]
[379453847,1755285046768,-153.0,0.00025279,2]
[379453848,1755285046779,-153.0,0.00025279,2]
[379453849,1755285046790,-153.0,0.00025279,2]
[379453850,1755285046801,-153.0,0.00025279,2]
[379453851,1755285046812,-153.0,0.00025279,2]
[379453852,1755285046823,-153.0,0.00025279,2]
[379453853,1755285046833,-153.0,0.00025279,2]
[379453854,1755285046844,-153.0,0.00025279,2]
[379453855,1755285046855,-153.0,0.00025279,2]
[379453856,1755285046865,-153.0,0.00025279,2]
[379453857,1755285046874,-153.0,0.00025279,2]
[379453858,1755285046883,-153.0,0.00025279,2]
[379453859,1755285046893,-153.0,0.00025279,2]
[379453860,1755285046903,-153.0,0.00025279,2]
[379453861,1755285046913,-153.0,0.00025279,2]
[379453862,1755285046922,-153.0,0.00025279,2]
[379453863,1755285046932,-153.0,0.00025279,2]
[379453864,1755285046942,-153.0,0.00025279,2]
[379453865,1755285046951,-153.0,0.00025279,2]
[379453866,1755285046961,-153.0,0.00025279,2]
[379453867,1755285046971,-153.0,0.00025279,2]
[379453868,1755285046981,-153.0,0.00025279,2]
[379453869,1755285046990,-153.0,0.00025279,2]
[379453870,1755285047004,-153.0,0.00025279,2]
[379453871,1755285047015,-153.0,0.00025279,2]
[379453872,1755285047026,-153.0,0.00025279,2]
[379453873,1755285047037,-153.0,0.00025279,2]
[379453874,1755285047048,-153.0,0.00025279,2]
[379453875,1755285047058,-153.0,0.00025279,2]
[379453876,1755285047069,-153.0,0.00025279,2]
[379453877,1755285047079,-153.0,0.00025279,2]
[379453878,1755285047090,-153.0,0.00025279,2]
[379453879,1755285047101,-153.0,0.00025279,2]
[379453880,1755285047112,-153.0,0.00025279,2]
[379453881,1755285047123,-153.0,0.00025279,2]
[379453882,1755285047134,-153.0,0.00025279,2]
[379453883,1755285047145,-153.0,0.00025279,2]
[379453884,1755285047156,-153.0,0.00025279,2]
[379453885,1755285047168,-153.0,0.00025279,2]
[379453886,1755285047178,-153.0,0.00025279,2]
[379453887,1755285047188,-153.0,0.00025279,2]
[379453888,1755285047198,-153.0,0.00025279,2]
[379453889,1755285047208,-153.0,0.00025279,2]
[379453890,1755285047218,-153.0,0.00025279,2]
[379453891,1755285047228,-153.0,0.00025279,2]
[379453892,1755285047238,-153.0,0.00025279,2]
[379453893,1755285047251,-153.0,0.00025279,2]
[379453894,1755285047261,-153.0,0.00025279,2]
[379453895,1755285047271,-153.0,0.00025279,2]
[379453896,1755285047281,-153.0,0.00025279,2]
[379453897,1755285047291,-153.0,0.00025279,2]
[379453898,1755285047301,-153.0,0.00025279,2]
[379453899,1755285047312,-153.0,0.00025279,2]
[379453900,1755285047323,-153.0,0.00025279,2]
[379453901,1755285047333,-153.0,0.00025279,2]
[379453902,1755285047345,-153.0,0.00025279,2]
[379453903,1755285047355,-153.0,0.00025279,2]
[379453904,1755285047364,-153.0,0.00025279,2]
[379453905,1755285047374,-153.0,0.00025279,2]
[379453906,1755285047385,-153.0,0.00025279,2]
[379453907,1755285047395,-153.0,0.00025279,2]
[379453908,1755285047407,-153.0,0.00025279,2]
[379453909,1755285047416,-153.0,0.00025279,2]
[379453910,1755285047425,-153.0,0.00025279,2]
[379453911,1755285047435,-153.0,0.00025279,2]
[379453912,1755285047444,-153.0,0.00025279,2]
[379453913,1755285047455,-153.0,0.00025279,2]
[379453914,1755285047466,-153.0,0.00025279,2]
[379453915,1755285047477,-153.0,0.00025279,2]
[379453916,1755285047488,-153.0,0.00025279,2]
[379453917,1755285047499,-153.0,0.00025279,2]
[379453918,1755285047510,-153.0,0.00025279,2]
[379453919,1755285047520,-153.0,0.00025279,2]
[379453920,1755285047529,-153.0,0.00025279,2]
[379453921,1755285047539,-2514.82852699,0.0002528,2]
[379453922,1755285047549,-1500.0,0.00025337,2]
[379453923,1755285047559,-160.38,0.0002534,7]
[379453924,1755285047568,-1038.54414982,0.00025419,2]
[379453925,1755285047578,-160.38,0.0002544,7]
[379453926,1755285047588,-500.0,0.0002548,2]
[379453927,1755285047598,-1000.0,0.000255,2]
[379453928,1755285047608,-5153.85,0.000255,7]
[379453929,1755285047618,-160.38,0.0002554,7]
[379453930,1755285047627,-13376.31707866,0.00025577,3]
[379453931,1755285047638,-15342.34,0.000256,7]
[379453932,1755285047648,-978.12,0.00025636,2]
[379453933,1755285047660,-160.38,0.0002564,7]
[379453934,1755285047671,-158.66,0.000257,7]
[379453935,1755285047682,-22966.19,0.000257,2]
[379453936,1755285047694,-1038.54414982,0.00025712,2]
[379453937,1755285047705,-1360.0,0.00025725,2]
[379453938,1755285047716,-1152.0,0.00025731,2]
[379453939,1755285047727,-160.38,0.0002574,7]
[379453940,1755285047738,-500.0,0.00025754,2]
[379453941,1755285047749,-151.0,0.00025761,6]
[379453942,1755285047760,-160.5006,0.0002584,7]
[379453943,1755285047771,-250.34248,0.00025869,2]
[379453944,1755285047783,-200.0,0.0002592,14]
[379453945,1755285047794,-520.51100165,0.00026,2]
[379453946,1755285047805,-528.28344625,0.00026,3]
[379453947,1755285047816,-232.08354597,0.00026,3]
[379453948,1755285047827,-160.0,0.00026,3]
[379453949,1755285047837,-216.77912109,0.00026,3]
[379453950,1755285047847,-216.77912109,0.00026,7]
[379453951,1755285047856,-462.0440047,0.00026,3]
[379453952,1755285047866,-160.0,0.00026,3]
[379453953,1755285047876,-843.47195277,0.00026,3]
[379453954,1755285047886,-843.47195277,0.00026,7]
[379453955,1755285047895,-160.0,0.00026,3]
[379453956,1755285047905,-160.0,0.00026,7]
[379453957,1755285047915,-417.15472785,0.00026,3]
[379453958,1755285047924,-207.25051895,0.00026,3]
[379453959,1755285047934,-160.0,0.00026,3]
[379453960,1755285047944,-1038.54414982,0.00026006,2]
[379453961,1755285047954,-281.448,0.00026007,2]
[379453962,1755285047964,-178.71948,0.0002601,2]
[379453963,1755285047974,-500.0,0.00026028,2]
[379453964,1755285047983,-13376.31707866,0.00026094,4]
[379453965,1755285047994,-178.71948,0.0002611,2]
[379453966,1755285048005,-1699.07118004,0.00026145,2]
[379453967,1755285048015,-191.23953148,0.0002616,2]
[379453968,1755285048025,-242.844,0.00026205,2]
[379453969,1755285048036,-178.71948,0.0002621,2]
[379453970,1755285048046,-1460.0,0.00026273,2]
[379453971,1755285048055,-1038.54414982,0.000263,2]
[379453972,1755285048065,-500.0,0.00026302,2]
[379453973,1755285048075,-178.71948,0.0002631,2]
[379453974,1755285048085,-151.0,0.00026347,6]
[379453975,1755285048095,-515.41597569,0.00026356,2]
[379453976,1755285048104,-178.71948,0.0002641,2]
[379453977,1755285048114,-500.0,0.00026576,2]
[379453978,1755285048124,-1038.54414982,0.00026594,2]
[379453979,1755285048134,-13376.31707866,0.0002661,5]
[379453980,1755285048144,-213.542944,0.00026712,2]
[379453981,1755285048154,-15342.34,0.000268,7]
[379453982,1755285048163,-1560.0,0.00026821,2]
[379453983,1755285048173,-500.0,0.0002685,2]
[379453984,1755285048182,-1038.54414982,0.00026887,2]
[379453985,1755285048192,-151.0,0.00026934,7]
[379453986,1755285048202,-158.66,0.00027,7]
[379453987,1755285048212,-156.560358,0.00027,3]
[379453988,1755285048222,-172.082066,0.00027,3]
[379453989,1755285048232,-5153.85,0.000271,7]
[379453990,1755285048242,-200.0,0.00027105,20]
[379453991,1755285048253,-200.0,0.00027105,20]
[379453992,1755285048262,-200.0,0.00027105,20]
[379453993,1755285048272,-200.0,0.00027105,20]
[379453994,1755285048283,-200.0,0.00027105,20]
[379453995,1755285048292,-200.0,0.00027105,20]
[379453996,1755285048302,-200.0,0.00027105,20]
[379453997,1755285048312,-200.0,0.00027105,20]
[379453998,1755285048323,-200.0,0.00027105,20]
[379453999,1755285048332,-200.0,0.00027105,20]
[379454000,1755285048342,-200.0,0.00027105,20]
[379454001,1755285048353,-200.0,0.00027105,20]
[379454002,1755285048363,-200.0,0.00027105,20]
[379454003,1755285048372,-200.0,0.00027105,20]
[379454004,1755285048382,-200.0,0.00027105,20]
[379454005,1755285048392,-200.0,0.00027105,20]
[379454006,1755285048401,-200.0,0.00027105,20]
[379454007,1755285048416,-200.0,0.00027105,20]
[379454008,1755285048426,-200.0,0.00027105,20]
[379454009,1755285048436,-200.0,0.00027105,20]
[379454010,1755285048446,-200.0,0.00027105,20]
[379454011,1755285048458,-200.0,0.00027105,20]
[379454012,1755285048577,-208.0,0.00027105,20]
[379454013,1755285048588,-889.5377199,0.0002712,2]
[379454014,1755285048598,-500.0,0.00027124,2]
[379454015,1755285048608,-13376.31707866,0.00027126,7]
[379454016,1755285048618,-5550.34001896,0.00027181,7]
[379454017,1755285048627,-1038.54414982,0.00027181,2]
[379454018,1755285048637,-160.0,0.0002726,5]
[379454019,1755285048646,-1334.00125273,0.00027331,8]
[379454020,1755285048656,-1660.0,0.00027369,2]
[379454021,1755285048665,-151.0,0.00027371,7]
[379454022,1755285048675,-151.0,0.00027371,7]
[379454023,1755285048685,-151.0,0.00027371,7]
[379454024,1755285048694,-151.0,0.00027371,7]
[379454025,1755285048705,-151.0,0.00027371,7]
[379454026,1755285048714,-151.0,0.00027371,7]
[379454027,1755285048723,-151.0,0.00027371,7]
[379454028,1755285048733,-151.0,0.00027371,7]
[379454029,1755285048743,-151.0,0.00027371,7]
[379454030,1755285048752,-293.652484,0.00027371,7]
[379454031,1755285048761,-151.0,0.00027371,7]
[379454032,1755285048770,-1000.0,0.00027371,2]
[379454033,1755285048779,-1000.0,0.00027371,2]
[379454034,1755285048788,-1000.0,0.00027371,2]
[379454035,1755285048797,-1000.0,0.00027371,2]
[379454036,1755285048806,-783.774481,0.00027371,2]
[379454037,1755285048816,-151.0,0.00027371,7]
[379454038,1755285048825,-151.0,0.00027376,7]
[379454039,1755285048835,-151.0,0.00027376,7]
[379454040,1755285048843,-151.0,0.00027376,7]
[379454041,1755285048853,-151.0,0.00027376,7]
[379454042,1755285048862,-151.0,0.00027376,7]
[379454043,1755285048871,-293.168575,0.00027376,7]
[379454044,1755285048880,-151.0,0.00027376,7]
[379454045,1755285048889,-151.0,0.00027376,7]
[379454046,1755285048900,-151.0,0.00027376,7]
[379454047,1755285048910,-151.0,0.00027376,7]
[379454048,1755285048919,-151.0,0.00027376,7]
[379454049,1755285048929,-151.0,0.00027376,7]
[379454050,1755285048939,-155.310861,0.00027376,7]
[379454051,1755285048950,-154.5425,0.00027377,7]
[379454052,1755285048960,-151.0,0.00027379,7]
[379454053,1755285048970,-151.0,0.00027379,7]
[379454054,1755285048979,-151.0,0.00027379,7]
[379454055,1755285048989,-151.0,0.00027379,7]
[379454056,1755285048999,-151.0,0.00027379,7]
[379454057,1755285049010,-151.0,0.00027379,7]
[379454058,1755285049020,-151.0,0.00027379,7]
[379454059,1755285049030,-151.0,0.00027379,7]
[379454060,1755285049039,-151.0,0.00027379,7]
[379454061,1755285049048,-151.0,0.00027379,7]
[379454062,1755285049058,-151.0,0.00027379,7]
[379454063,1755285049068,-151.0,0.00027379,7]
[379454064,1755285049078,-151.0,0.00027379,7]
[379454065,1755285049087,-151.0,0.00027379,7]
[379454066,1755285049096,-151.0,0.00027379,7]
[379454067,1755285049105,-151.0,0.00027379,7]
[379454068,1755285049115,-151.0,0.00027379,7]
[379454069,1755285049124,-151.0,0.00027379,7]
[379454070,1755285049133,-277.458135,0.00027379,7]
[379454071,1755285049142,-151.0,0.00027379,7]
[379454072,1755285049151,-151.0,0.00027379,7]
[379454073,1755285049161,-151.0,0.00027379,7]
[379454074,1755285049171,-151.0,0.00027379,7]
[379454075,1755285049180,-151.0,0.00027379,7]
[379454076,1755285049189,-151.0,0.00027379,7]
[379454077,1755285049199,-151.0,0.00027379,7]
[379454078,1755285049209,-151.0,0.00027379,7]
[379454079,1755285049219,-151.0,0.00027379,7]
[379454080,1755285049228,-151.0,0.00027379,7]
[379454081,1755285049238,-151.0,0.00027379,7]
[379454082,1755285049250,-151.0,0.00027379,7]
[379454083,1755285049260,-299.68320127,0.00027379,7]
[379454084,1755285049270,-151.0,0.00027379,7]
[379454085,1755285049280,-151.0,0.00027379,7]
[379454086,1755285049290,-151.0,0.00027379,7]
[379454087,1755285049300,-151.0,0.00027379,7]
[379454088,1755285049309,-151.0,0.00027379,7]
[379454089,1755285049319,-151.0,0.00027379,7]
[379454090,1755285049328,-151.0,0.00027379,7]
[379454091,1755285049338,-151.0,0.00027379,7]
[379454092,1755285049347,-180.822432,0.00027379,7]
[379454093,1755285049357,-151.0,0.00027381,7]
[379454094,1755285049367,-151.0,0.00027382,7]
[379454095,1755285049377,-216.933799,0.00027382,7]
[379454096,1755285049387,-151.049328,0.00027382,7]
[379454097,1755285049397,-151.0,0.00027382,7]
[379454098,1755285049409,-151.0,0.00027382,7]
[379454099,1755285049419,-151.0,0.00027382,7]
[379454100,1755285049428,-151.0,0.00027382,7]
[379454101,1755285049438,-211.985607,0.00027383,7]
[379454102,1755285049448,-211.985607,0.00027383,7]
[379454103,1755285049458,-211.985607,0.00027383,7]
[379454104,1755285049468,-211.985607,0.00027383,7]
[379454105,1755285049477,-211.985607,0.00027383,7]
[379454106,1755285049486,-211.985607,0.00027383,7]
[379454107,1755285049496,-211.985607,0.00027383,7]
[379454108,1755285049508,-211.985607,0.00027383,7]
[379454109,1755285049518,-211.985607,0.00027383,7]
[379454110,1755285049531,-211.985607,0.00027383,7]
[379454111,1755285049543,-211.985607,0.00027383,7]
[379454112,1755285049552,-211.985607,0.00027383,7]
[379454113,1755285049561,-211.985607,0.00027383,7]
[379454114,1755285049571,-211.985607,0.00027383,7]
[379454115,1755285049580,-211.985607,0.00027383,7]
[379454116,1755285049590,-211.985607,0.00027383,7]
[379454117,1755285049599,-211.985607,0.00027383,7]
[379454118,1755285049609,-211.985607,0.00027383,7]
[379454119,1755285049618,-211.985607,0.00027383,7]
[379454120,1755285049628,-211.985615,0.00027383,7]
[379454121,1755285049638,-151.0,0.00027383,7]
[379454122,1755285049648,-151.0,0.00027388,7]
[379454123,1755285049658,-151.0,0.00027388,7]
[379454124,1755285049667,-151.0,0.00027388,7]
[379454125,1755285049677,-151.0,0.00027388,7]
[379454126,1755285049686,-151.0,0.00027388,7]
[379454127,1755285049697,-151.0,0.00027388,7]
[379454128,1755285049706,-151.0,0.00027388,7]
[379454129,1755285049715,-151.0,0.00027388,7]
[379454130,1755285049725,-196.92392414,0.0002739,2]
[379454131,1755285049734,-244.227004,0.00027396,7]
[379454132,1755285049743,-244.227004,0.00027396,7]
[379454133,1755285049753,-244.227004,0.00027396,7]
[379454134,1755285049762,-244.227004,0.00027396,7]
[379454135,1755285049772,-244.227004,0.00027396,7]
[379454136,1755285049781,-244.227004,0.00027396,7]
[379454137,1755285049791,-244.227004,0.00027396,7]
[379454138,1755285049800,-244.227004,0.00027396,7]
[379454139,1755285049809,-244.227004,0.00027396,7]
[379454140,1755285049819,-244.227004,0.00027396,7]
[379454141,1755285049828,-244.227004,0.00027396,7]
[379454142,1755285049837,-244.227004,0.00027396,7]
[379454143,1755285049846,-244.227004,0.00027396,7]
[379454144,1755285049856,-244.227004,0.00027396,7]
[379454145,1755285049865,-244.227004,0.00027396,7]
[379454146,1755285049873,-244.227004,0.00027396,7]
[379454147,1755285049883,-244.227004,0.00027396,7]
[379454148,1755285049891,-244.227004,0.00027396,7]
[379454149,1755285049900,-244.227004,0.00027396,7]
[379454150,1755285049909,-244.227008,0.00027396,7]
[379454151,1755285049919,-151.0,0.00027396,7]
[379454152,1755285049929,-151.0,0.00027396,7]
[379454153,1755285049938,-151.0,0.00027396,7]
[379454154,1755285049947,-191.204824,0.00027396,7]
[379454155,1755285049956,-151.0,0.00027396,7]
[379454156,1755285049965,-151.0,0.00027396,7]
[379454157,1755285049975,-153.43776749,0.00027397,2]
[379454158,1755285049985,-430.30698584,0.00027397,5]
[379454159,1755285049994,-500.0,0.00027397,5]
[379454160,1755285050004,-500.0,0.00027397,5]
[379454161,1755285050014,-500.0,0.00027398,2]
[379454162,1755285050023,-151.0,0.00027398,7]
[379454163,1755285050034,-151.0,0.00027398,7]
[379454164,1755285050043,-151.0,0.00027398,7]
[379454165,1755285050052,-151.0,0.00027398,7]
[379454166,1755285050062,-151.0,0.00027398,7]
[379454167,1755285050071,-151.0,0.00027398,7]
[379454168,1755285050081,-151.0,0.00027398,7]
[379454169,1755285050091,-151.0,0.00027398,7]
[379454170,1755285050100,-151.0,0.00027398,7]
[379454171,1755285050109,-151.0,0.00027398,7]
[379454172,1755285050119,-194.871972,0.00027398,7]
[379454173,1755285050128,-152.301724,0.00027398,7]
[379454174,1755285050137,-151.0,0.00027398,7]
[379454175,1755285050146,-151.0,0.00027398,7]
[379454176,1755285050156,-151.0,0.00027398,7]
[379454177,1755285050165,-151.0,0.00027398,7]
[379454178,1755285050174,-151.0,0.00027398,7]
[379454179,1755285050184,-151.0,0.00027398,7]
[379454180,1755285050193,-151.0,0.00027398,7]
[379454181,1755285050202,-151.0,0.00027398,7]
[379454182,1755285050213,-151.0,0.00027398,7]
[379454183,1755285050222,-151.0,0.00027398,7]
[379454184,1755285050231,-151.0,0.00027398,7]
[379454185,1755285050240,-151.0,0.00027398,7]
[379454186,1755285050251,-151.0,0.00027398,7]
[379454187,1755285050260,-151.0,0.00027398,7]
[379454188,1755285050269,-151.0,0.00027398,7]
[379454189,1755285050278,-249.769492,0.00027398,7]
[379454190,1755285050287,-2000.0,0.000274,2]
[379454191,1755285050296,-528.28344625,0.000274,10]
[379454192,1755285050305,-250.0,0.000274,7]
[379454193,1755285050315,-250.0,0.000274,7]
[379454194,1755285050323,-190.878435,0.000274,2]
[379454195,1755285050333,-524.67902869,0.0002742,5]
[379454196,1755285050342,-500.0,0.0002742,20]
[379454197,1755285050352,-500.0,0.0002742,20]
[379454198,1755285050362,-500.0,0.0002742,5]
[379454199,1755285050371,-500.0,0.0002742,5]
[379454200,1755285050380,-500.0,0.0002742,5]
[379454201,1755285050389,-500.0,0.0002742,20]
[379454202,1755285050398,-500.0,0.0002742,20]
[379454203,1755285050410,-500.0,0.0002742,5]
[379454204,1755285050420,-500.0,0.0002742,20]
[379454205,1755285050430,-500.0,0.0002742,20]
[379454206,1755285050439,-500.0,0.0002742,20]
[379454207,1755285050449,-500.0,0.0002742,5]
[379454208,1755285050459,-500.0,0.0002742,20]
[379454209,1755285050468,-500.0,0.0002742,5]
[379454210,1755285050478,-500.0,0.0002742,20]
[379454211,1755285050488,-347.6674573,0.0002742,5]
[379454212,1755285050498,-500.0,0.0002742,5]
[379454213,1755285050508,-151.0,0.00027421,7]
[379454214,1755285050517,-151.0,0.00027421,7]
[379454215,1755285050527,-151.0,0.00027421,7]
[379454216,1755285050536,-151.0,0.00027421,7]
[379454217,1755285050546,-162.945879,0.00027421,7]
[379454218,1755285050555,-500.0,0.00027426,10]
[379454219,1755285050564,-500.0,0.00027427,10]
[379454220,1755285050573,-156.560358,0.00027429,20]
[379454221,1755285050583,-172.082066,0.00027429,20]
[379454222,1755285050592,-972.0,0.00027453,2]
[379454223,1755285050601,-2152.0,0.00027453,2]
[379454224,1755285050610,-636.0,0.00027453,2]
[379454225,1755285050619,-408.0,0.00027453,2]
[379454226,1755285050628,-1038.54414982,0.00027475,2]
[379454227,1755285050638,-1699.07118004,0.00027475,2]
[379454228,1755285050647,-4000.0,0.000275,2]
[379454229,1755285050656,-45184.13464889,0.000275,2]
[379454230,1755285050665,-301.45420449,0.000275,30]
[379454231,1755285050674,-155.18,0.00027508,15]
[379454232,1755285050683,-207.0,0.0002752,2]
[379454233,1755285050692,-208.0,0.0002752,2]
[379454234,1755285050701,-207.0,0.0002752,2]
[379454235,1755285050711,-151.0,0.0002752,7]
[379454236,1755285050719,-1500.0,0.00027529,7]
[379454237,1755285050728,-500.0,0.00027529,5]
[379454238,1755285050738,-500.0,0.00027529,5]
[379454239,1755285050747,-500.0,0.00027529,5]
[379454240,1755285050756,-500.0,0.00027529,5]
[379454241,1755285050766,-210.0,0.0002757,19]
[379454242,1755285050775,-197.32,0.00027578,7]
[379454243,1755285050784,-2263.54613032,0.00027578,2]
[379454244,1755285050793,-516272.32593007,0.00027578,20]
[379454245,1755285050803,-164.38733504,0.00027578,5]
[379454246,1755285050812,-273183.29788173,0.00027578,20]
[379454247,1755285050821,-452795.06255062,0.00027578,20]
[379454248,1755285051065,294.546771,0.00013699,2]
[379454249,1755285051235,-5884.07,0.0002202,10]
[379454250,1755285051245,-3267.24595749,0.00027578,20]
[379454251,1755285051258,-4138.60308951,0.00027578,20]
[379454252,1755285051269,-37332.40155979,0.00027578,20]
[379454310,1755285932122,-178.11114125,0.00016648,2]
[379454318,1755286054122,311.199038,0.00013699,2]
[379454331,1755286146211,-294.0,0.00016648,2]
[379454332,1755286147123,-23.47510456,0.00016648,2]
[379454333,1755286147144,-327.05593517,0.00017031,2]
[379454334,1755286147165,-201.7112427,0.00017061,2]
[379454335,1755286147186,-800.15771757,0.00017161,2]
[379454336,1755286152093,-399.84228243,0.00017161,2]
[379454337,1755286152114,-1200.0,0.00017161,2]
[379454338,1755286152135,-300.0,0.00017161,2]
[379454339,1755286152155,-300.0,0.00017162,2]
[379454340,1755286152176,-300.0,0.00017162,2]
[379454341,1755286152197,-216.0,0.00017162,2]
[379454342,1755286152218,-300.0,0.00017162,2]
[379454343,1755286152238,-9686.92144314,0.00017163,2]
[379454348,1755286167111,-313.07855686,0.00017163,2]
[379454349,1755286167133,-500.0,0.00017271,2]
[379454350,1755286167155,-500.0,0.00017271,2]
[379454351,1755286167177,-500.0,0.00017271,2]
[379454352,1755286167202,-500.0,0.00017271,2]
[379454353,1755286167223,-500.0,0.00017271,2]
[379454354,1755286167246,-500.0,0.00017271,2]
[379454355,1755286167270,-500.0,0.00017271,2]
[379454356,1755286167291,-500.0,0.00017271,2]
[379454357,1755286167311,-500.0,0.00017271,2]
[379454358,1755286167333,-500.0,0.00017271,2]
[379454359,1755286167353,-282.6980376,0.00017271,2]
[379454360,1755286167377,-188.16354887,0.00017271,2]
[379454361,1755286167398,-500.0,0.00017271,2]
[379454362,1755286167421,-500.0,0.00017271,2]
[379454363,1755286167442,-500.0,0.00017271,2]
[379454364,1755286167466,-555.92384366,0.00017271,2]
[379454365,1755286167488,-500.0,0.00017271,2]
[379454366,1755286167511,-500.0,0.00017271,2]
[379454367,1755286167533,-274.13601301,0.00017271,2]
[379454400,1755286232602,-1200.0,0.0001727,2]
[379454403,1755286232612,-225.86398699,0.00017271,2]
[379454406,1755286232621,-500.0,0.00017271,2]
[379454408,1755286232630,-500.0,0.00017271,2]
[379454410,1755286232640,-262.56208562,0.00017271,2]
[379454412,1755286232650,-500.0,0.00017271,2]
[379454413,1755286232660,-500.0,0.00017271,2]
[379454414,1755286232670,-500.0,0.00017271,2]
[379454415,1755286232681,-503.9729838,0.00017271,2]